bitfinex-derivatives/quotes_BTCF0:USTF0_20241021
["timestamp","ask_amount","ask_price","bid_price","bid_amount"]
[1729529232374,0.3618,67195.0,67194.0,0.074437]
[1729529235293,0.3618,67195.0,67194.0,0.08196883]
[1729529235592,0.36164,67207.0,67194.0,0.00753183]
[1729529235779,0.3608,67207.0,67206.0,0.074424]
[1729529237291,0.3618,67207.0,67206.0,0.074424]
[1729529238893,0.3608,67207.0,67206.0,0.074424]
[1729529239186,0.3788,67207.0,67206.0,0.18988782]
[1729529239382,0.453223,67207.0,67206.0,0.14258352]
[1729529239582,0.3788,67207.0,67206.0,0.10346247]
[1729529239797,0.3788,67207.0,67206.0,0.1035437]
[1729529239990,0.3788,67207.0,67206.0,0.29135265]
[1729529240178,0.3788,67207.0,67206.0,0.21700988]
[1729529240384,0.3788,67207.0,67206.0,0.2913403]
[1729529241191,0.3788,67207.0,67206.0,0.17787412]
[1729529241389,0.3788,67207.0,67206.0,0.29133792]
[1729529241585,0.3788,67207.0,67206.0,0.29131547]
[1729529241793,0.3788,67207.0,67206.0,0.17785167]
[1729529242292,0.3788,67207.0,67206.0,0.29131599]
[1729529242592,0.3788,67207.0,67206.0,0.29131473]
[1729529242890,0.3788,67207.0,67206.0,0.21700676]
[1729529244489,0.018,67207.0,67206.0,0.21700676]
[1729529244693,0.018,67207.0,67206.0,0.21700309]
[1729529246286,0.018,67207.0,67206.0,0.1035437]
[1729529248289,0.092423,67207.0,67206.0,0.0291197]
[1729529248481,0.018,67207.0,67206.0,0.0291197]
[1729529248689,0.018,67207.0,67206.0,0.1035437]
[1729529255000,0.3608,67210.0,67209.0,0.07442]
[1729529255506,0.3608,67210.0,67209.0,0.52078]
[1729529256403,0.3728,67210.0,67209.0,0.52078]
[1729529257312,0.3838,67210.0,67209.0,0.52178]
[1729529257806,0.3838,67210.0,67209.0,0.07542]
[1729529258109,0.3838,67210.0,67209.0,0.52178]
[1729529258698,0.023,67210.0,67209.0,0.88258]
[1729529259307,0.3608,67218.0,67217.0,0.074411]
[1729529259494,0.00223222,67221.0,67220.0,0.074408]
[1729529260009,0.00223222,67221.0,67220.0,0.13380785]
[1729529260909,0.00823222,67221.0,67220.0,0.16145892]
[1729529261416,0.06292156,67221.0,67220.0,0.10305907]
[1729529266214,0.06068934,67221.0,67220.0,0.10305907]
[1729529267705,0.06068934,67221.0,67220.0,0.54933907]
[1729529268116,0.02723645,67221.0,67220.0,0.54933907]
[1729529268314,0.20718764,67233.0,67232.0,0.074395]
[1729529268514,0.074395,67232.0,67230.0,0.074397]
[1729529269217,0.20718764,67233.0,67232.0,0.074395]
[1729529269410,0.1538,67233.0,67232.0,0.074395]
[1729529269815,0.1538,67233.0,67232.0,0.075395]
[1729529270713,0.228194,67233.0,67232.0,0.001]
[1729529271110,0.228194,67233.0,67232.0,0.002]
[1729529271908,0.228194,67233.0,67232.0,0.001]
[1729529272419,0.228194,67233.0,67232.0,0.075395]
[1729529272620,0.1538,67233.0,67232.0,0.075395]
[1729529272818,0.228194,67233.0,67232.0,0.001]
[1729529273619,0.228194,67233.0,67230.0,0.074396]
[1729529273929,0.228194,67233.0,67229.0,0.00758562]
[1729529273930,0.1538,67233.0,67229.0,0.00758562]
[1729529274122,0.074397,67230.0,67229.0,0.074398]
[1729529274316,0.228194,67233.0,67232.0,0.001]
[1729529276028,0.228194,67233.0,67218.0,0.00223144]
[1729529276029,0.074404,67224.0,67218.0,0.00223144]
[1729529276325,0.228195,67233.0,67222.0,0.074406]
[1729529276508,0.3608,67228.0,67222.0,0.074406]
[1729529276706,0.074405,67223.0,67222.0,0.074406]
[1729529276910,0.074405,67223.0,67219.0,0.074408]
[1729529277112,0.3608,67222.0,67221.0,0.074407]
[1729529278611,0.3608,67222.0,67221.0,0.076407]
[1729529279214,0.435206,67222.0,67221.0,0.002]
[1729529279418,0.588406,67222.0,67221.0,0.002]
[1729529279725,0.588406,67222.0,67221.0,0.005]
[1729529280714,0.588406,67222.0,67221.0,0.002]
[1729529282612,0.588406,67222.0,67218.0,0.07441]
[1729529283226,0.588406,67222.0,67217.0,0.02634799]
[1729529283427,0.588406,67222.0,67220.0,0.074407]
[1729529283815,0.514,67222.0,67210.0,0.074418]
[1729529284018,0.07441,67219.0,67216.0,0.074412]
[1729529284217,0.07441,67219.0,67217.0,0.074411]
[1729529284416,0.51484,67222.0,67209.0,0.38730721]
[1729529284417,0.04568985,67218.0,67209.0,0.38730721]
[1729529284624,0.12010185,67217.0,67209.0,0.38730721]
[1729529284834,0.04568985,67216.0,67215.0,0.074414]
[1729529286125,0.04568985,67216.0,67215.0,0.076414]
[1729529286431,0.04568985,67216.0,67215.0,0.079414]
[1729529289131,0.48090285,67216.0,67215.0,0.005]
[1729529289334,0.53429095,67216.0,67215.0,0.005]
[1729529290832,0.53429095,67216.0,67215.0,0.004]
[1729529291233,0.48090285,67216.0,67215.0,0.004]
[1729529291540,0.435213,67216.0,67215.0,0.002]
[1729529292837,0.3608,67216.0,67211.0,0.074418]
[1729529293040,0.3608,67216.0,67209.0,0.02650721]
[1729529293220,0.3608,67216.0,67205.0,0.00017324]
[1729529293424,0.074415,67214.0,67211.0,0.074418]
[1729529293833,0.074414,67215.0,67211.0,0.074418]
[1729529294149,0.3608,67216.0,67205.0,0.00017324]
[1729529294325,0.435224,67206.0,67205.0,0.02732986]
[1729529294523,0.435224,67206.0,67205.0,0.00017324]
[1729529294725,0.074426,67204.0,67185.0,0.25838711]
[1729529294929,0.074416,67213.0,67185.0,0.0816]
[1729529294930,0.074442,67190.0,67185.0,0.0816]
[1729529295129,0.3608,67195.0,67185.0,0.0816]
[1729529295329,0.074441,67191.0,67185.0,0.0267892]
[1729529295527,0.074441,67191.0,67182.0,0.36168]
[1729529295528,0.0753,67190.0,67188.0,0.074443]
[1729529295734,0.00016694,67189.0,67188.0,0.074443]
[1729529297226,0.00016694,67189.0,67188.0,0.086443]
[1729529297832,0.15510894,67189.0,67188.0,0.012]
[1729529298036,0.15510894,67189.0,67188.0,0.025]
[1729529298335,0.08066694,67189.0,67188.0,0.025]
[1729529298538,0.08066694,67189.0,67188.0,0.099444]
[1729529298934,0.00016694,67189.0,67188.0,0.099444]
[1729529299248,0.3608,67207.0,67198.0,0.074433]
[1729529299447,0.3608,67207.0,67196.0,0.00745911]
[1729529299645,0.39796974,67207.0,67204.0,0.05926403]
[1729529299944,0.074424,67206.0,67204.0,0.05926403]
[1729529301131,0.074424,67206.0,67204.0,0.13369003]
[1729529301326,0.074424,67206.0,67205.0,0.074425]
[1729529301527,0.32354674,67207.0,67206.0,0.074424]
[1729529301936,0.32354674,67207.0,67206.0,0.13368803]
[1729529302137,0.32354674,67207.0,67206.0,0.074424]
[1729529302643,0.32354674,67207.0,67206.0,0.18788567]
[1729529304143,0.4371,67225.0,67207.0,0.44636]
[1729529304338,0.074405,67223.0,67220.0,0.074408]
[1729529304541,0.4371,67225.0,67220.0,0.13368236]
[1729529304733,0.229106,67222.0,67221.0,0.05927436]
[1729529304933,0.1547,67222.0,67221.0,0.13368136]
[1729529305134,0.1547,67222.0,67221.0,0.074407]
[1729529306638,0.20039138,67222.0,67221.0,0.074407]
[1729529307035,0.20039138,67222.0,67212.0,0.074417]
[1729529307237,0.3608,67218.0,67217.0,0.074411]
[1729529307431,0.40649138,67218.0,67217.0,0.074411]
[1729529308449,0.56935091,67218.0,67217.0,0.074411]
[1729529308850,0.62274257,67218.0,67217.0,0.074411]
[1729529309040,0.45988304,67218.0,67217.0,0.074411]
[1729529312049,0.5694403,67218.0,67217.0,0.074411]
[1729529312244,0.40649138,67218.0,67217.0,0.074411]
[1729529312653,0.40649138,67218.0,67217.0,0.02619382]
[1729529312849,0.40649138,67218.0,67213.0,0.074416]
[1729529313047,0.40649138,67218.0,67213.0,0.10148671]
[1729529313048,0.04569138,67217.0,67213.0,0.10148671]
[1729529313252,0.04569138,67217.0,67214.0,0.074415]
[1729529313448,0.05339384,67217.0,67214.0,0.074415]
[1729529313655,0.20864382,67217.0,67206.0,0.074423]
[1729529313853,0.0456949,67216.0,67214.0,0.074414]
[1729529314047,0.4064949,67215.0,67214.0,0.074414]
[1729529314349,0.45988874,67215.0,67214.0,0.074414]
[1729529314554,0.3608,67215.0,67214.0,0.074414]
[1729529315242,0.7216,67215.0,67214.0,0.074414]
[1729529318155,0.7216,67215.0,67214.0,0.02623635]
[1729529318363,0.7216,67215.0,67213.0,0.074419]
[1729529319057,0.7216,67215.0,67214.0,0.074419]
[1729529321656,0.82069439,67215.0,67214.0,0.074419]
[1729529324763,0.82069439,67215.0,67214.0,0.10154409]
[1729529328762,0.7216,67215.0,67214.0,0.10154409]
[1729529336871,0.82069141,67215.0,67214.0,0.10154409]
[1729529337076,0.82069141,67215.0,67214.0,0.07738809]
[1729529338979,0.82069262,67215.0,67214.0,0.07738809]
[1729529343770,0.7216,67215.0,67214.0,0.07738809]
[1729529344879,0.074418,67218.0,67217.0,0.074419]
[1729529346385,0.435218,67218.0,67217.0,0.074419]
[1729529348381,0.3608,67218.0,67217.0,0.074419]
[1729529348998,0.3608,67218.0,67213.0,0.074423]
[1729529349181,0.3608,67218.0,67217.0,0.074419]
[1729529349387,0.3608,67218.0,67217.0,0.11888643]
[1729529349592,0.3608,67230.0,67228.0,0.074407]
[1729529349774,0.435205,67230.0,67228.0,0.074407]
[1729529350178,0.36156,67230.0,67228.0,0.074407]
[1729529350376,0.3608,67230.0,67228.0,0.074407]
[1729529351288,0.3608,67230.0,67228.0,0.075407]
[1729529351477,0.3608,67230.0,67228.0,0.076407]
[1729529354085,0.3608,67230.0,67228.0,0.10257745]
[1729529357180,0.36303185,67229.0,67228.0,0.10257745]
[1729529357582,0.43873185,67229.0,67228.0,0.02817045]
[1729529357781,0.51313785,67229.0,67228.0,0.02817045]
[1729529358992,0.61221872,67229.0,67228.0,0.02817045]
[1729529360588,0.61221872,67229.0,67228.0,0.10257745]
[1729529364088,0.98405272,67229.0,67212.0,0.0775]
[1729529364309,0.3608,67213.0,67210.0,0.075347]
[1729529364489,0.3608,67213.0,67212.0,0.074425]
[1729529364688,0.45989072,67213.0,67212.0,0.074425]
[1729529366886,0.3608,67213.0,67212.0,0.074425]
[1729529371292,0.4334,67220.0,67219.0,0.074417]
[1729529372506,0.4334,67220.0,67219.0,0.075417]
[1729529372906,0.3608,67220.0,67219.0,0.075417]
[1729529373310,0.3608,67220.0,67219.0,0.076417]
[1729529373816,0.3608,67225.0,67224.0,0.074411]
[1729529374898,0.3608,67225.0,67224.0,0.075411]
[1729529375208,0.3608,67225.0,67224.0,0.076411]
[1729529380001,0.40648803,67225.0,67224.0,0.076411]
[1729529380815,0.45987409,67225.0,67224.0,0.076411]
[1729529381113,0.62299902,67225.0,67224.0,0.076411]
[1729529381702,0.45987409,67225.0,67224.0,0.076411]
[1729529381911,0.3608,67225.0,67224.0,0.13597331]
[1729529383407,0.3608,67225.0,67224.0,0.076411]
[1729529384110,0.3608,67225.0,67224.0,0.13586188]
[1729529384906,0.00223185,67229.0,67224.0,0.06145088]
[1729529385106,0.00223185,67229.0,67228.0,0.11899683]
[1729529386306,0.00223185,67229.0,67228.0,0.11999683]
[1729529387408,0.36303185,67229.0,67228.0,0.11999683]
[1729529387808,0.36303185,67229.0,67228.0,0.11899683]
[1729529388109,0.36303185,67229.0,67228.0,0.11999683]
[1729529388714,0.36303185,67229.0,67228.0,0.074407]
[1729529388919,0.36303185,67229.0,67228.0,0.075407]
[1729529389123,0.36303185,67229.0,67228.0,0.11999954]
[1729529390131,0.3608,67229.0,67228.0,0.11999954]
[1729529390324,0.3608,67229.0,67228.0,0.074407]
[1729529391430,0.3608,67229.0,67228.0,0.11899892]
[1729529391917,0.3608,67229.0,67228.0,0.074407]
[1729529392114,0.3608,67229.0,67228.0,0.11899751]
[1729529392322,0.3608,67229.0,67228.0,0.1011906]
[1729529393426,0.3608,67229.0,67228.0,0.14577875]
[1729529393823,0.3608,67229.0,67228.0,0.14578038]
[1729529394024,0.3608,67229.0,67228.0,0.1011906]
[1729529394828,0.3608,67229.0,67228.0,0.14578038]
[1729529395134,0.3608,67229.0,67228.0,0.1011906]
[1729529396035,0.3608,67229.0,67228.0,0.14578295]
[1729529396240,0.3608,67229.0,67228.0,0.1011906]
[1729529396736,0.3608,67229.0,67228.0,0.14578798]
[1729529396937,0.45987359,67229.0,67228.0,0.1011906]
[1729529400835,0.53427959,67229.0,67228.0,0.0267836]
[1729529401040,0.53427959,67229.0,67219.0,0.074416]
[1729529401237,0.3608,67220.0,67219.0,0.074416]
[1729529401440,0.40648778,67220.0,67219.0,0.074416]
[1729529401644,0.45987359,67220.0,67219.0,0.074416]
[1729529402042,0.09907359,67220.0,67219.0,0.074416]
[1729529402234,0.04568778,67220.0,67219.0,0.074416]
[1729529402740,0.09907359,67222.0,67219.0,0.074416]
[1729529402946,0.09907436,67222.0,67221.0,0.074415]
[1729529403742,0.04568855,67222.0,67221.0,0.074415]
[1729529403948,0.3608,67223.0,67220.0,0.1384]
[1729529404247,0.3608,67223.0,67222.0,0.074413]
[1729529404945,0.00223135,67243.0,67235.0,0.074399]
[1729529404946,0.3608,67236.0,67235.0,0.074399]
[1729529405142,0.3608,67236.0,67235.0,0.11906246]
[1729529405447,0.3608,67236.0,67235.0,0.074399]
[1729529406834,0.3608,67236.0,67233.0,0.04466346]
[1729529407039,0.3608,67236.0,67232.0,0.074402]
[1729529407243,0.3608,67236.0,67231.0,0.04466346]
[1729529407443,0.074404,67231.0,67226.0,0.074409]
[1729529407752,0.3608,67227.0,67226.0,0.10086087]
[1729529409451,0.1402,67230.0,67229.0,0.074406]
[1729529410048,0.0719,67230.0,67229.0,0.074406]
[1729529410950,0.0719,67230.0,67229.0,0.11906946]
[1729529411953,0.0719,67230.0,67229.0,0.074406]
[1729529412943,0.0719,67230.0,67229.0,0.10127149]
[1729529413639,0.11758509,67230.0,67229.0,0.10127149]
[1729529414246,0.04568509,67230.0,67229.0,0.10127149]
[1729529414440,0.09906776,67230.0,67229.0,0.10127149]
[1729529414645,0.20910824,67230.0,67229.0,0.10127149]
[1729529414838,0.09906776,67230.0,67229.0,0.10127149]
[1729529419651,0.3608,67231.0,67230.0,0.074405]
[1729529420349,0.3608,67231.0,67230.0,0.06489842]
[1729529425245,0.3608,67231.0,67230.0,0.09197777]
[1729529425647,0.3608,67231.0,67230.0,0.02707935]
[1729529425851,0.3608,67231.0,67229.0,0.074405]
[1729529426239,0.3608,67231.0,67230.0,0.074405]
[1729529426745,0.45987131,67231.0,67230.0,0.074405]
[1729529428844,0.09907131,67231.0,67230.0,0.074405]
[1729529429050,0.04568673,67231.0,67230.0,0.074405]
[1729529429245,0.04568673,67231.0,67230.0,0.10065312]
[1729529429550,0.05338458,67236.0,67230.0,0.10065312]
[1729529429855,0.0990659,67235.0,67234.0,0.0744]
[1729529430159,0.0990659,67235.0,67234.0,0.08171498]
[1729529430956,0.0990659,67235.0,67234.0,0.07354349]
[1729529431750,0.0990659,67235.0,67234.0,0.07454349]
[1729529431955,0.3608,67242.0,67241.0,0.074392]
[1729529432457,0.07153099,67250.0,67244.0,0.074389]
[1729529432458,0.19294004,67249.0,67244.0,0.074389]
[1729529432652,0.19294004,67249.0,67248.0,0.074385]
[1729529432853,0.07153099,67250.0,67249.0,0.074384]
[1729529434560,0.07153099,67250.0,67249.0,0.075384]
[1729529434943,0.07153099,67250.0,67249.0,0.076384]
[1729529438068,0.07153099,67250.0,67249.0,0.10352044]
[1729529440959,0.14591399,67250.0,67249.0,0.02913644]
[1729529441266,0.07439,67244.0,67241.0,0.074392]
[1729529441451,0.07439,67244.0,67235.0,0.23113765]
[1729529441452,0.3608,67242.0,67235.0,0.23113765]
[1729529441652,0.0697,67241.0,67235.0,0.23113765]
[1729529442160,0.0697,67241.0,67235.0,0.02653865]
[1729529442368,0.0697,67241.0,67240.0,0.074394]
[1729529444960,0.0697,67241.0,67240.0,0.075394]
[1729529445250,0.0697,67241.0,67240.0,0.076394]
[1729529446065,0.144092,67241.0,67240.0,0.002]
[1729529446263,0.211792,67241.0,67240.0,0.002]
[1729529446852,0.211792,67241.0,67240.0,0.001]
[1729529447163,0.074395,67239.0,67236.0,0.074398]
[1729529447371,0.0694,67238.0,67236.0,0.074398]
[1729529447669,0.0694,67238.0,67236.0,0.02713435]
[1729529447972,0.074399,67236.0,67233.0,0.074401]
[1729529448155,0.074399,67236.0,67234.0,0.0744]
[1729529448758,0.074399,67236.0,67232.0,0.074402]
[1729529449167,0.43096,67238.0,67225.0,0.38726678]
[1729529449357,0.3608,67230.0,67229.0,0.074405]
[1729529449973,0.40648534,67230.0,67229.0,0.074405]
[1729529450162,0.4598683,67230.0,67229.0,0.074405]
[1729529450959,0.4598683,67230.0,67229.0,0.10117473]
[1729529451168,0.56960844,67230.0,67229.0,0.10117473]
[1729529451364,0.6229914,67230.0,67229.0,0.10217473]
[1729529451876,0.04568534,67230.0,67229.0,0.10317473]
[1729529456879,0.1631231,67235.0,67229.0,0.10317473]
[1729529457181,0.43096,67238.0,67233.0,0.05941516]
[1729529457381,0.4302,67238.0,67237.0,0.074397]
[1729529460781,0.3608,67238.0,67237.0,0.074397]
[1729529464678,0.211084,67249.0,67244.0,0.074388]
[1729529464880,0.04567423,67248.0,67238.0,0.074396]
[1729529465070,0.1367,67249.0,67244.0,0.074389]
[1729529465071,0.3608,67245.0,67244.0,0.074389]
[1729529465270,0.40647423,67245.0,67244.0,0.074389]
[1729529465471,0.4598442,67245.0,67244.0,0.074389]
[1729529465684,0.4598442,67245.0,67244.0,0.05679027]
[1729529466277,0.4598442,67245.0,67244.0,0.074389]
[1729529466478,0.59938304,67245.0,67244.0,0.074389]
[1729529466689,0.65275301,67245.0,67244.0,0.075389]
[1729529466882,0.4598442,67245.0,67244.0,0.075389]
[1729529467084,0.4598442,67245.0,67244.0,0.076389]
[1729529468880,0.45984662,67245.0,67244.0,0.076389]
[1729529470881,0.45984662,67245.0,67244.0,0.1030623]
[1729529471988,0.074385,67248.0,67244.0,0.0286733]
[1729529472193,0.1367,67249.0,67244.0,0.1030623]
[1729529472194,0.3608,67245.0,67244.0,0.1030623]
[1729529472397,0.074386,67247.0,67246.0,0.074387]
[1729529473885,0.435186,67247.0,67246.0,0.075387]
[1729529474095,0.074386,67247.0,67246.0,0.075387]
[1729529474687,0.435186,67247.0,67246.0,0.075387]
[1729529474993,0.435186,67247.0,67246.0,0.076387]
[1729529475183,0.3608,67247.0,67246.0,0.076387]
[1729529476699,0.3608,67247.0,67246.0,0.075387]
[1729529476897,0.3608,67247.0,67246.0,0.076387]
[1729529480102,0.45984417,67247.0,67246.0,0.076387]
[1729529480793,0.45984417,67247.0,67246.0,0.075387]
[1729529481596,0.45984417,67247.0,67246.0,0.074387]
[1729529483094,0.45984417,67247.0,67246.0,0.06694831]
[1729529486202,0.09904417,67247.0,67246.0,0.06694831]
[1729529486391,0.40647421,67247.0,67246.0,0.06694831]
[1729529486591,0.45984417,67247.0,67246.0,0.06694831]
[1729529487203,0.3608,67247.0,67246.0,0.06694831]
[1729529487394,0.0668,67249.0,67246.0,0.06694831]
[1729529487593,0.0668,67249.0,67248.0,0.074385]
[1729529488808,0.0668,67249.0,67248.0,0.075385]
[1729529490311,0.0668,67249.0,67248.0,0.076385]
[1729529491017,0.07143099,67250.0,67248.0,0.076385]
[1729529491206,0.07143099,67250.0,67249.0,0.074384]
[1729529491207,0.00223099,67250.0,67249.0,0.074384]
[1729529492790,0.00223099,67250.0,67249.0,0.075384]
[1729529493409,0.00223099,67250.0,67249.0,0.076384]
[1729529494300,0.09903686,67250.0,67249.0,0.076384]
[1729529494499,0.06875637,67259.0,67248.0,0.22019011]
[1729529494698,0.16008863,67258.0,67257.0,0.074375]
[1729529494995,0.16008863,67258.0,67257.0,0.06693751]
[1729529495602,0.09903103,67258.0,67257.0,0.06024376]
[1729529496007,0.09903103,67258.0,67257.0,0.06124376]
[1729529496612,0.16008254,67258.0,67257.0,0.06124376]
[1729529497319,0.09903103,67258.0,67257.0,0.06224376]
[1729529498820,0.09903103,67258.0,67257.0,0.08947821]
[1729529502216,0.17340503,67258.0,67257.0,0.02923445]
[1729529502512,0.435174,67258.0,67257.0,0.02923445]
[1729529503128,0.435174,67258.0,67231.0,0.3608]
[1729529503129,0.3608,67258.0,67251.0,0.074381]
[1729529503424,0.3608,67252.0,67251.0,0.074381]
[1729529505120,0.3608,67252.0,67251.0,0.075381]
[1729529505312,0.139278,67254.0,67251.0,0.075381]
[1729529505517,0.7216,67253.0,67252.0,0.07438]
[1729529506232,0.795979,67253.0,67252.0,0.07438]
[1729529506528,0.7216,67253.0,67252.0,0.07438]
[1729529506927,0.7216,67253.0,67251.0,0.002]
[1729529507112,0.07438,67252.0,67251.0,0.001]
[1729529508124,0.07438,67252.0,67241.0,0.02667611]
[1729529508425,0.07438,67252.0,67241.0,0.02652064]
[1729529508426,0.074391,67242.0,67241.0,0.02652064]
[1729529508631,0.7216,67244.0,67239.0,0.00223002]
[1729529508632,0.074394,67240.0,67239.0,0.00223002]
[1729529509035,0.44616,67240.0,67219.0,0.1294]
[1729529509331,0.3608,67224.0,67223.0,0.074412]
[1729529510828,0.3608,67224.0,67223.0,0.088412]
[1729529511739,0.3608,67224.0,67223.0,0.548692]
[1729529512023,0.12333137,67239.0,67223.0,0.3888]
[1729529512325,0.12333137,67239.0,67236.0,0.074397]
[1729529513521,0.12333137,67239.0,67229.0,0.3608]
[1729529513723,0.12333137,67239.0,67234.0,0.0744]
[1729529513918,0.12333137,67239.0,67236.0,0.004]
[1729529514926,0.12333137,67239.0,67236.0,0.078397]
[1729529515130,0.12333137,67239.0,67237.0,0.074396]
[1729529516232,0.12333137,67239.0,67236.0,0.004]
[1729529516620,0.435197,67237.0,67236.0,0.004]
[1729529517438,0.48857872,67237.0,67236.0,0.004]
[1729529517822,0.435197,67237.0,67236.0,0.004]
[1729529518429,0.881397,67237.0,67234.0,0.0264523]
[1729529518627,0.074405,67230.0,67229.0,0.3608]
[1729529519526,0.074405,67230.0,67227.0,0.074408]
[1729529519933,0.074405,67230.0,67229.0,0.011]
[1729529520340,0.435205,67230.0,67229.0,0.011]
[1729529520523,0.48858674,67230.0,67229.0,0.021]
[1729529521434,0.435205,67230.0,67229.0,0.01]
[1729529522532,0.435205,67230.0,67229.0,0.021]
[1729529523528,0.3608,67230.0,67229.0,0.095406]
[1729529523741,0.3608,67237.0,67229.0,0.021]
[1729529524039,0.3608,67237.0,67234.0,0.0744]
[1729529524341,0.3608,67237.0,67229.0,0.021]
[1729529524632,0.3608,67237.0,67233.0,0.074401]
[1729529524633,0.074399,67236.0,67233.0,0.074401]
[1729529524940,0.435197,67237.0,67234.0,0.0744]
[1729529525128,0.435197,67237.0,67235.0,0.074399]
[1729529525637,0.435197,67237.0,67236.0,0.074398]
[1729529526724,0.3608,67237.0,67236.0,0.077398]
[1729529527731,0.3608,67237.0,67236.0,0.081398]
[1729529528525,0.435197,67237.0,67236.0,0.081398]
[1729529530336,0.3608,67237.0,67236.0,0.081398]
[1729529530740,0.3608,67237.0,67236.0,0.1078406]
[1729529530935,0.3608,67237.0,67236.0,0.081398]
[1729529531137,0.435197,67237.0,67236.0,0.007]
[1729529531733,0.881397,67237.0,67223.0,0.04457118]
[1729529531940,0.3608,67226.0,67222.0,0.00223134]
[1729529532247,0.43521,67226.0,67225.0,0.07441]
[1729529532447,0.3608,67226.0,67225.0,0.07441]
[1729529532643,0.3608,67226.0,67222.0,0.02962847]
[1729529532941,0.3608,67226.0,67216.0,0.07442]
[1729529532942,0.07442,67217.0,67216.0,0.07442]
[1729529533134,0.07442,67216.0,67215.0,0.02715572]
[1729529533338,0.07442,67216.0,67215.0,0.10157672]
[1729529533535,0.07442,67216.0,67215.0,0.02715572]
[1729529534046,0.3608,67218.0,67217.0,0.074419]
[1729529535243,0.3618,67218.0,67217.0,0.088419]
[1729529536554,0.436218,67218.0,67217.0,0.014]
[1729529536854,0.436218,67218.0,67217.0,0.028]
[1729529538145,0.436218,67218.0,67217.0,0.102419]
[1729529538350,0.3618,67218.0,67217.0,0.102419]
[1729529538649,0.13341,67225.0,67217.0,0.028]
[1729529538851,0.13341,67225.0,67222.0,0.074413]
[1729529539150,0.13341,67225.0,67218.0,0.074418]
[1729529539151,0.059,67225.0,67218.0,0.074418]
[1729529539341,0.059,67225.0,67224.0,0.074411]
[1729529539649,0.3608,67226.0,67225.0,0.07441]
[1729529539852,0.41419025,67226.0,67225.0,0.07441]
[1729529541138,0.41419025,67226.0,67225.0,0.08841]
[1729529541759,0.3608,67226.0,67225.0,0.08841]
[1729529542351,0.3608,67226.0,67225.0,0.10241]
[1729529542545,0.00223174,67230.0,67225.0,0.3888]
[1729529542745,0.3608,67245.0,67230.0,0.074404]
[1729529542746,0.0592,67242.0,67230.0,0.074404]
[1729529543049,0.0592,67242.0,67236.0,0.074398]
[1729529543050,0.074395,67239.0,67236.0,0.074398]
[1729529543238,0.074395,67239.0,67236.0,0.074397]
[1729529543635,0.0592,67242.0,67237.0,0.074396]
[1729529543840,0.074393,67241.0,67233.0,0.074401]
[1729529544143,0.0592,67242.0,67240.0,0.074394]
[1729529544651,0.074392,67241.0,67240.0,0.074394]
[1729529546342,0.075392,67241.0,67240.0,0.074394]
[1729529547349,0.001,67241.0,67240.0,0.074394]
[1729529547556,0.001,67241.0,67240.0,0.435194]
[1729529549053,0.001,67241.0,67240.0,0.46136186]
[1729529553544,0.0573,67252.0,67240.0,0.38696786]
[1729529553747,0.3608,67259.0,67250.0,0.074383]
[1729529554053,0.0562,67260.0,67250.0,0.074383]
[1729529554647,0.10126286,67251.0,67250.0,0.06694471]
[1729529554850,0.10526286,67251.0,67250.0,0.06794471]
[1729529555651,0.05959448,67251.0,67250.0,0.06894471]
[1729529555859,0.10526309,67251.0,67250.0,0.06894471]
[1729529557757,0.05189995,67251.0,67250.0,0.06894471]
[1729529558058,0.04966861,67251.0,67250.0,0.06894471]
[1729529558452,0.10303175,67251.0,67250.0,0.06894471]
[1729529558954,0.04966861,67251.0,67250.0,0.06894471]
[1729529560160,0.04966861,67251.0,67250.0,0.09577982]
[1729529562568,0.004,67251.0,67250.0,0.09577982]
[1729529563860,0.003,67251.0,67250.0,0.09477982]
[1729529564063,0.0562,67260.0,67259.0,0.074373]
[1729529565358,0.0592,67260.0,67259.0,0.076373]
[1729529568657,0.003,67260.0,67259.0,0.075373]
[1729529568958,0.058,67264.0,67263.0,0.074368]
[1729529569664,0.1570165,67264.0,67263.0,0.03085121]
[1729529570375,0.1570165,67264.0,67263.0,0.03185121]
[1729529571058,0.22106514,67264.0,67263.0,0.03285121]
[1729529572057,0.45815347,67264.0,67263.0,0.03285121]
[1729529573357,0.41249202,67264.0,67263.0,0.03285121]
[1729529573664,0.45815347,67264.0,67263.0,0.03285121]
[1729529573864,0.22106514,67264.0,67263.0,0.03285121]
[1729529574067,0.1600165,67264.0,67263.0,0.03285121]
[1729529575170,0.22106514,67264.0,67263.0,0.03285121]
[1729529576065,0.1600165,67264.0,67263.0,0.03285121]
[1729529577071,0.22106514,67264.0,67263.0,0.03285121]
[1729529577258,0.1600165,67264.0,67263.0,0.03285121]
[1729529577775,0.061,67264.0,67263.0,0.03285121]
[1729529580479,0.10666184,67264.0,67263.0,0.03285121]
[1729529582466,0.061,67264.0,67263.0,0.03285121]
[1729529584570,0.16002081,67264.0,67263.0,0.03285121]
[1729529585667,0.16002081,67264.0,67259.0,0.02624686]
[1729529585668,0.22107211,67264.0,67259.0,0.02624686]
[1729529585882,0.16007211,67263.0,67256.0,0.563256]
[1729529586183,0.16007211,67262.0,67256.0,0.5905265]
[1729529586381,0.16007211,67261.0,67256.0,0.5905265]
[1729529586680,0.11440867,67260.0,67259.0,0.074373]
[1729529586979,0.11440867,67260.0,67259.0,0.075373]
[1729529586980,0.05335737,67260.0,67259.0,0.075373]
[1729529588182,0.05335737,67260.0,67259.0,0.001]
[1729529588183,0.11740867,67260.0,67259.0,0.001]
[1729529588370,0.2425539,67260.0,67259.0,0.075373]
[1729529589264,0.17380867,67260.0,67259.0,0.075373]
[1729529589468,0.17580867,67260.0,67259.0,0.076373]
[1729529589881,0.11940867,67260.0,67259.0,0.076373]
[1729529590567,0.11940867,67260.0,67259.0,0.001]
[1729529591170,0.35726383,67260.0,67259.0,0.001]
[1729529591485,0.35726383,67260.0,67259.0,0.075373]
[1729529592278,0.11940867,67260.0,67259.0,0.075373]
[1729529592580,0.005,67260.0,67259.0,0.075373]